bitfinex-derivatives/quotes_ETHF0:USTF0_20250918
["timestamp","ask_amount","ask_price","bid_price","bid_amount"]
[1758164481432,0.2059,4614.1,4614.0,0.8475]
[1758164481631,0.22,4614.1,4614.0,0.5333]
[1758164481833,0.22,4614.1,4614.0,0.8475]
[1758164483125,0.4259,4614.1,4614.0,0.8475]
[1758164483527,0.22,4614.1,4614.0,0.8475]
[1758164483926,0.4259,4614.1,4614.0,0.8475]
[1758164485527,0.2059,4614.1,4614.0,0.8475]
[1758164486636,0.73679796,4614.1,4614.0,0.8475]
[1758164487734,1.49405986,4614.1,4614.0,0.8475]
[1758164488131,0.53089796,4614.1,4614.0,0.8475]
[1758164488325,0.73679796,4614.1,4614.0,0.8475]
[1758164489536,1.22409796,4614.1,4614.0,0.8475]
[1758164489834,2.1543689,4614.1,4614.0,0.8475]
[1758164490433,1.22409796,4614.1,4614.0,0.8475]
[1758164490631,1.44409796,4614.1,4614.0,0.8475]
[1758164490834,2.3743689,4614.1,4614.0,0.8475]
[1758164491638,2.3743689,4614.1,4614.0,0.521]
[1758164491834,1.66747408,4614.1,4614.0,0.521]
[1758164492533,1.44409796,4614.1,4614.0,0.7222]
[1758164492738,1.44409796,4614.1,4614.0,0.8475]
[1758164493241,1.44434229,4614.1,4614.0,0.8475]
[1758164494741,0.95704229,4614.1,4614.0,0.8475]
[1758164495444,1.44434229,4614.1,4614.0,0.8475]
[1758164498144,1.66785647,4614.1,4614.0,0.7222]
[1758164499139,0.7118,4613.8,4613.7,0.1733]
[1758164499341,2.61676678,4613.8,4613.7,0.1733]
[1758164500640,2.08562449,4613.8,4613.7,0.6811]
[1758164500841,2.6169694,4613.8,4613.7,0.6811]
[1758164501041,2.61696698,4613.8,4613.7,0.6811]
[1758164501237,2.61696698,4613.8,4613.7,0.8791]
[1758164501238,1.68669604,4613.8,4613.7,0.8791]
[1758164501446,1.68669604,4613.8,4613.7,0.6811]
[1758164503049,1.68669604,4613.8,4613.7,0.1733]
[1758164503849,1.68669604,4613.8,4613.7,0.6811]
[1758164506750,1.68669604,4613.8,4613.7,0.8791]
[1758164509151,1.15399604,4613.8,4613.7,0.8791]
[1758164509349,0.53134249,4613.8,4613.7,4.0869]
[1758164509548,0.22,4613.8,4613.7,4.0869]
[1758164510350,0.22,4613.8,4613.7,3.9136]
[1758164511052,0.3127,4614.4,4614.0,0.1227]
[1758164511253,1.18266314,4614.3,4614.2,0.7058]
[1758164511949,0.5312078,4614.3,4614.2,4.84387094]
[1758164512149,0.428,4614.7,4614.6,0.7058]
[1758164512546,0.95916441,4614.7,4614.6,0.7058]
[1758164515456,0.75116441,4614.7,4614.6,0.7058]
[1758164515753,0.208,4614.7,4614.6,0.7058]
[1758164515952,0.428,4614.7,4614.6,0.7058]
[1758164516159,0.9318,4614.7,4614.6,0.7058]
[1758164517551,0.22,4614.7,4614.6,0.7058]
[1758164517754,0.428,4614.7,4614.6,0.7058]
[1758164518255,0.22,4614.7,4614.6,0.7058]
[1758164518558,0.724,4615.1,4615.0,0.5168]
[1758164518758,1.25454752,4615.1,4615.0,0.5168]
[1758164518946,0.4167,4614.9,4614.8,3.5015]
[1758164519150,0.724,4614.9,4614.8,3.7017]
[1758164519551,1.2544384,4614.9,4614.5,0.2937]
[1758164519760,1.05047094,4615.0,4614.5,0.2937]
[1758164519761,1.65427094,4614.6,4614.5,0.4939]
[1758164519961,0.8442,4614.5,4614.4,0.1733]
[1758164520254,1.37460883,4614.5,4614.4,0.1733]
[1758164520455,0.8442,4614.5,4614.4,0.1733]
[1758164520648,0.8442,4614.5,4611.0,4.82300784]
[1758164520649,5.29072535,4614.5,4613.3,3.2078]
[1758164520853,5.29072535,4614.5,4613.3,3.7017]
[1758164520854,1.65427094,4613.4,4613.3,3.7017]
[1758164521162,1.87427094,4613.4,4613.3,3.7017]
[1758164521360,0.6367,4613.4,4613.3,3.899]
[1758164521561,0.22,4613.4,4613.3,3.899]
[1758164522070,0.4276,4613.4,4613.3,3.899]
[1758164522470,0.6367,4613.4,4613.3,3.899]
[1758164522764,1.87427094,4613.4,4613.3,3.2078]
[1758164522960,1.47435671,4613.4,4612.8,3.2078]
[1758164523154,1.13787094,4613.0,4612.9,0.6912]
[1758164525363,1.35787094,4613.0,4612.9,0.6912]
[1758164527661,1.55367094,4613.0,4612.9,0.6912]
[1758164527965,0.8086,4612.5,4612.4,0.0216]
[1758164528152,1.95887094,4612.5,4612.4,0.0216]
[1758164528358,1.67187094,4612.5,4612.1,0.1734]
[1758164528656,1.61977094,4612.2,4612.1,0.6846]
[1758164528858,0.2067,4612.2,4612.1,0.8895]
[1758164529063,1.15027094,4612.5,4612.2,0.3001]
[1758164529464,1.35697094,4612.5,4612.4,0.7161]
[1758164529660,1.35697094,4612.5,4612.3,3.2078]
[1758164529661,1.13697094,4613.0,4612.9,0.2111]
[1758164529962,1.13697094,4613.0,4612.9,0.5112]
[1758164529963,2.36941438,4613.0,4612.9,0.5112]
[1758164530564,0.93214344,4613.0,4612.9,0.7161]
[1758164530765,0.287,4613.4,4613.0,0.1245]
[1758164530963,0.2067,4613.3,4613.2,0.7161]
[1758164531159,0.4267,4613.3,4613.2,0.7161]
[1758164531860,40.8,4614.1,4613.2,0.7161]
[1758164531861,0.22,4613.9,4613.8,0.3001]
[1758164532063,0.22,4613.9,4613.8,0.7161]
[1758164532064,0.95099581,4613.9,4613.8,0.7161]
[1758164532257,0.74429581,4613.9,4613.8,0.7161]
[1758164532462,3.2078,4614.4,4613.8,0.7161]
[1758164532662,0.95116863,4614.3,4614.2,0.7161]
[1758164532867,1.43396863,4614.3,4614.2,0.7161]
[1758164533267,0.9095,4614.3,4614.2,0.7161]
[1758164533463,1.43392145,4614.3,4614.2,0.5112]
[1758164533663,1.43392145,4614.3,4613.6,0.3001]
[1758164533969,1.13697094,4613.9,4613.8,0.7161]
[1758164534362,1.13697094,4613.9,4613.5,0.1245]
[1758164534363,1.61977094,4613.9,4613.5,0.1245]
[1758164534563,1.61977094,4613.9,4613.0,0.2979]
[1758164534564,0.6895,4613.4,4613.1,0.3001]
[1758164534768,0.1191,4613.5,4613.0,0.1734]
[1758164534769,0.6895,4613.1,4613.0,0.1734]
[1758164535463,1.61977094,4613.1,4613.0,0.6846]
[1758164535769,1.61977094,4613.1,4612.5,0.1245]
[1758164535974,1.61977094,4612.8,4612.7,0.5112]
[1758164536271,1.83977094,4612.8,4612.7,0.5112]
[1758164536470,1.83977094,4612.8,4612.7,0.7161]
[1758164536671,1.55277094,4612.8,4612.7,0.7161]
[1758164536974,0.6225,4612.8,4612.7,0.7161]
[1758164537465,3.4948,4613.9,4613.2,0.416]
[1758164537673,0.6895,4613.9,4613.8,0.7161]
[1758164537868,0.4025,4613.4,4612.6,3.2078]
[1758164538170,0.8086,4612.5,4612.4,0.2111]
[1758164538370,1.95887094,4612.5,4612.4,0.2111]
[1758164538673,1.95887094,4612.5,4612.4,0.7161]
[1758164538867,0.9095,4612.5,4612.4,0.7161]
[1758164539970,1.83977094,4612.5,4612.4,0.7161]
[1758164540167,0.6895,4612.2,4612.1,3.2294]
[1758164540371,1.61977094,4612.2,4612.1,3.4405]
[1758164540573,1.61977094,4612.2,4612.1,3.719]
[1758164540870,1.61977094,4612.2,4612.1,3.4189]
[1758164541268,0.2067,4612.2,4612.1,3.9239]
[1758164541566,1.33277094,4612.7,4612.6,0.416]
[1758164541772,0.6225,4612.7,4612.6,0.7161]
[1758164542272,0.9095,4612.7,4612.6,0.7161]
[1758164542767,0.6895,4612.7,4612.6,0.7161]
[1758164542968,0.2067,4612.7,4612.6,3.9239]
[1758164543172,0.4267,4612.7,4612.6,3.9239]
[1758164543979,0.4025,4613.5,4613.4,0.7161]
[1758164544365,0.6225,4613.5,4613.4,0.7161]
[1758164544577,0.9095,4613.5,4613.4,0.7161]
[1758164545071,0.6225,4613.5,4613.4,0.7161]
[1758164545273,0.9095,4613.5,4613.4,0.7161]
[1758164546371,0.287,4613.9,4613.5,0.4246]
[1758164546561,3.2078,4614.3,4613.6,0.3001]
[1758164546562,0.22,4613.7,4613.6,0.3001]
[1758164546766,0.22,4613.7,4613.6,0.7161]
[1758164546968,0.4267,4613.7,4613.6,0.7161]
[1758164549069,0.22,4613.7,4613.6,0.7161]
[1758164549475,0.287,4614.0,4613.6,0.416]
[1758164549677,0.4267,4613.9,4613.8,0.416]
[1758164549873,0.287,4614.1,4613.8,0.7161]
[1758164550075,0.287,4614.6,4614.5,0.5405]
[1758164550266,0.4937,4614.0,4613.9,0.7161]
[1758164550980,0.6895,4614.0,4613.9,0.7161]
[1758164551175,0.8086,4614.0,4613.9,0.2111]
[1758164551490,1.0286,4614.0,4613.9,0.2111]
[1758164551775,0.6895,4613.9,4613.8,3.2078]
[1758164553276,0.4025,4613.9,4613.3,3.2078]
[1758164553479,0.6895,4613.2,4613.1,0.5112]
[1758164553781,0.9095,4613.2,4613.1,0.5112]
[1758164553977,0.9095,4613.2,4613.1,0.7161]
[1758164555776,0.9095,4613.2,4613.1,0.416]
[1758164557184,0.9095,4613.2,4613.1,0.7055]
[1758164558181,0.9095,4613.2,4612.8,3.4973]
[1758164558182,0.6225,4613.2,4612.8,3.4973]
[1758164558385,0.6225,4613.2,4612.4,0.2895]
[1758164558386,0.7004,4612.9,4612.4,0.2895]
[1758164558583,0.5216,4612.5,4612.3,3.2078]
[1758164558782,0.9204,4612.4,4612.3,3.408]
[1758164558983,0.9204,4612.4,4612.3,3.9031]
[1758164560894,0.22,4612.4,4612.3,3.9031]
[1758164561293,0.7167,4612.4,4612.3,3.9031]
[1758164561596,0.9204,4612.4,4612.3,3.9031]
[1758164562094,0.7004,4612.4,4612.3,3.9031]
[1758164562294,0.9204,4612.4,4612.3,3.9031]
[1758164562998,0.7004,4612.4,4612.3,3.9031]
[1758164563194,0.9204,4612.4,4612.3,3.9031]
[1758164563797,1.67900892,4612.4,4612.3,0.6953]
[1758164565600,1.67900892,4612.4,4612.0,0.2895]
[1758164565799,1.45900892,4612.1,4612.0,0.2002]
[1758164566198,1.98271898,4612.1,4612.0,0.2002]
[1758164566593,1.98271898,4612.1,4612.0,0.6953]
[1758164566798,1.67900892,4612.4,4612.3,0.6953]
[1758164567002,2.20262723,4612.4,4612.3,0.6953]
[1758164567503,1.67900892,4612.4,4612.3,0.6953]
[1758164567895,1.45900892,4612.4,4612.3,0.6953]
[1758164568095,1.67900892,4612.4,4612.3,0.6953]
[1758164568295,1.67900892,4612.4,4612.3,0.4058]
[1758164568497,1.44393681,4612.4,4612.3,0.6953]
[1758164568696,1.67900892,4612.4,4612.3,0.6953]
[1758164570099,1.67900892,4612.4,4612.3,0.2002]
[1758164570402,1.37770892,4612.4,4612.3,0.2002]
[1758164570804,1.67900892,4612.4,4612.3,0.2002]
[1758164570999,0.7004,4612.4,4612.3,0.6953]
[1758164571200,1.67900892,4612.4,4612.3,0.6953]
[1758164572195,1.67900892,4612.4,4612.3,0.4897]
[1758164572407,0.3991,4612.1,4612.0,0.4897]
[1758164572706,0.1954,4612.6,4612.5,0.8212]
[1758164572905,0.7167,4612.6,4612.5,0.8212]
[1758164573105,0.9204,4612.6,4612.5,0.6953]
[1758164573805,1.67900892,4612.6,4612.5,0.8212]
[1758164574005,0.97860892,4612.6,4612.5,0.8212]
[1758164574407,1.47530892,4612.6,4612.5,0.8212]
[1758164574610,1.67900892,4612.6,4612.5,0.6953]
[1758164575414,1.45900892,4612.6,4612.5,0.6953]
[1758164575607,1.67900892,4612.6,4612.5,0.6953]
[1758164576608,1.67900892,4612.6,4612.1,0.2895]
[1758164576808,1.67900892,4612.6,4611.9,3.2078]
[1758164576809,0.7004,4612.0,4611.9,3.6136]
[1758164577014,0.97860892,4612.0,4611.9,3.9031]
[1758164577517,0.217,4612.1,4612.0,0.5317]
[1758164577715,0.217,4612.1,4612.0,1.29030892]
[1758164577915,0.75860892,4612.6,4612.0,1.57980892]
[1758164578111,0.75860892,4612.4,4612.1,0.2895]
[1758164578317,0.75860892,4613.4,4612.6,0.6953]
[1758164578516,0.4977,4612.8,4612.7,0.701]
[1758164578706,1.45289055,4612.8,4612.7,0.701]
[1758164579215,1.45289055,4612.8,4612.3,0.304]
[1758164579522,1.22192745,4612.7,4612.6,0.701]
[1758164580215,1.45307673,4612.7,4612.6,0.701]
[1758164580616,2.21168565,4612.7,4612.6,0.701]
[1758164582417,0.2874,4613.4,4612.6,1.15560892]
[1758164582716,0.75860892,4613.8,4613.2,1.45960892]
[1758164582916,0.7177,4613.5,4613.4,0.701]
[1758164583120,2.32448545,4613.5,4613.4,0.701]
[1758164583322,2.55602363,4613.5,4613.4,0.701]
[1758164583814,3.31463255,4613.5,4612.9,3.2078]
[1758164584012,3.31463255,4613.5,4612.8,0.304]
[1758164584013,0.1228,4612.5,4612.4,3.5118]
[1758164584221,1.58000892,4612.5,4612.4,3.3982]
[1758164584720,1.58000892,4612.5,4612.4,3.9088]
[1758164585113,1.58000892,4612.5,4612.4,0.701]
[1758164585315,2.09951868,4612.5,4612.4,0.701]
[1758164585518,2.32940714,4612.5,4612.4,0.1904]
[1758164585718,2.3294047,4612.5,4612.4,0.1904]
[1758164586218,2.3294047,4612.5,4612.1,0.304]
[1758164586419,1.47010892,4612.2,4612.1,0.5113]
[1758164586716,0.1225,4612.0,4611.9,3.2078]
[1758164586916,1.59260892,4612.0,4611.9,3.4151]
[1758164587615,1.59260892,4612.0,4611.8,0.1734]
[1758164587616,2.34218096,4612.0,4611.8,0.1734]
[1758164587922,1.46107204,4611.9,4611.8,0.1734]
[1758164588117,1.46107204,4611.9,4611.8,0.3807]
[1758164588318,1.46107204,4611.9,4611.8,0.2073]
[1758164590424,1.23117284,4611.9,4611.8,0.2073]
[1758164590819,1.45117284,4611.9,4611.8,0.2073]
[1758164591220,1.68104611,4611.9,4611.8,0.2073]
[1758164591420,1.68104611,4611.9,4611.5,0.3337]
[1758164591618,1.17490892,4611.6,4611.5,0.541]
[1758164591820,0.75860892,4611.8,4611.5,0.5514]
[1758164592121,0.8343,4612.5,4612.4,0.7171]
[1758164592322,1.80372454,4612.5,4612.4,0.7171]
[1758164592521,2.56233346,4612.5,4612.4,0.7171]
[1758164595826,1.80372454,4612.5,4612.4,0.7171]
[1758164596016,2.56233346,4612.5,4612.4,0.7171]
[1758164596326,2.56233346,4612.5,4612.4,0.2073]
[1758164596529,2.56233346,4612.5,4612.1,0.3121]
[1758164596826,1.47010892,4612.2,4612.1,0.7171]
[1758164597025,1.69010892,4612.2,4612.1,0.7171]
[1758164597621,1.48050892,4612.2,4612.1,0.7171]
[1758164598620,1.69010892,4612.2,4612.1,0.7171]
[1758164599026,1.47010892,4612.2,4612.1,0.7171]
[1758164599230,1.69010892,4612.2,4612.1,0.7171]
[1758164601028,0.7115,4612.2,4612.1,0.7171]
[1758164601329,0.4267,4612.2,4612.1,0.7171]
[1758164602430,0.2067,4612.2,4612.1,0.7171]
[1758164602630,0.4267,4612.2,4612.1,0.7171]
[1758164603219,35.2538,4613.0,4612.1,0.7171]
[1758164603220,0.7115,4612.9,4612.8,0.405]
[1758164603526,0.2952,4613.4,4613.0,0.1248]
[1758164603731,0.5019,4613.7,4613.6,0.405]
[1758164603925,1.68126454,4613.7,4613.6,0.7171]
[1758164604729,1.68126454,4613.7,4613.6,0.2073]
[1758164604936,1.46117234,4613.7,4613.6,0.2073]
[1758164605132,1.46117234,4613.7,4613.6,0.7171]
[1758164605133,1.68117234,4613.7,4613.6,0.7171]
[1758164605430,1.68117234,4613.7,4613.3,0.3121]
[1758164605732,1.47010892,4613.4,4613.3,0.5194]
[1758164605927,1.69010892,4613.4,4613.3,0.5194]
[1758164606626,1.69010892,4613.4,4613.3,0.7171]
[1758164608032,1.47010892,4613.4,4613.3,0.7171]
[1758164608333,1.69010892,4613.4,4613.3,0.7171]
[1758164609031,0.9315,4613.4,4613.3,0.7171]
[1758164609232,0.7115,4613.4,4613.3,0.7171]
[1758164609433,0.9315,4613.4,4613.3,0.7171]
[1758164610031,0.22,4613.5,4613.3,0.7171]
[1758164610536,0.7219,4613.5,4613.4,0.7171]
[1758164611029,0.7219,4613.5,4613.4,1.47570892]
[1758164611030,0.5019,4613.5,4613.4,1.47570892]
[1758164611237,0.2952,4614.1,4613.8,0.3121]
[1758164611431,0.2952,4614.1,4613.8,1.47570892]
[1758164611933,1.2067,4613.9,4613.8,1.47570892]
[1758164612539,1.0,4613.9,4613.8,1.47570892]
[1758164613335,1.0,4613.9,4613.8,5.69570892]
[1758164613736,1.0,4613.9,4613.8,5.86708744]
[1758164614250,0.7115,4614.9,4614.8,0.7171]
[1758164614543,0.9315,4614.9,4614.8,0.7171]
[1758164615140,0.7115,4614.9,4614.8,0.7171]
[1758164615344,0.9315,4614.9,4614.8,0.7171]
[1758164616442,0.7004,4615.1,4615.0,0.6868]
[1758164616639,3.2078,4615.7,4615.0,0.6868]
[1758164616640,3.2078,4615.7,4615.0,3.7292]
[1758164616841,3.4121,4615.7,4615.6,0.1956]
[1758164617045,3.841,4615.7,4615.6,0.4861]
[1758164617341,0.9204,4615.7,4615.6,0.4861]
[1758164617542,0.7004,4615.7,4615.6,0.4861]
[1758164617843,0.9204,4615.7,4615.6,0.4861]
[1758164618140,0.7004,4615.7,4615.6,3.8946]
[1758164618339,0.17171721,4616.9,4616.4,0.2905]
[1758164618340,0.2872,4616.9,4616.4,0.2905]
[1758164618546,0.4915,4616.8,4616.7,4.82458744]
[1758164618741,0.2043,4616.8,4616.7,4.82458744]
[1758164619143,0.4915,4616.8,4616.7,4.82458744]
[1758164619345,0.4915,4616.8,4616.7,3.8946]
[1758164619539,0.7004,4616.8,4616.7,3.8946]
[1758164619747,0.7004,4616.8,4616.7,3.2078]
[1758164621348,0.2872,4616.7,4616.5,0.0216]
[1758164621548,1.85038744,4616.6,4616.5,0.0216]
[1758164621745,0.9204,4616.6,4616.5,0.0216]
[1758164622745,0.9204,4616.6,4616.5,0.2172]
[1758164622952,0.9204,4616.6,4616.5,0.7084]
[1758164623248,0.9204,4616.6,4616.5,0.0216]
[1758164623448,0.9204,4616.6,4616.5,0.7084]
[1758164623651,0.2043,4616.6,4616.5,0.543]
[1758164623854,0.22,4616.7,4616.5,0.8335]
[1758164624050,0.2872,4617.3,4616.8,0.3963]
[1758164624249,0.2043,4616.9,4616.8,0.3963]
[1758164624450,0.7115,4616.9,4616.8,0.3963]
[1758164624647,0.9204,4616.9,4616.8,0.6868]
[1758164625056,0.7004,4616.9,4616.8,0.6868]
[1758164625257,0.9204,4616.9,4616.8,0.6868]
[1758164626250,0.7004,4616.9,4616.8,0.6868]
[1758164631855,0.22,4617.0,4616.8,0.6868]
[1758164632054,0.2043,4616.9,4616.8,0.6868]
[1758164632257,0.4915,4616.9,4616.8,0.6868]
[1758164633564,0.2043,4616.9,4616.8,0.6868]
[1758164633765,0.4915,4616.9,4616.8,0.6868]
[1758164634359,0.2043,4616.9,4616.8,0.6868]
[1758164634560,0.4915,4616.9,4616.8,0.6868]
[1758164635664,0.7004,4616.9,4616.8,0.6868]
[1758164635963,0.2043,4616.9,4616.8,0.6868]
[1758164636664,0.2872,4616.8,4616.7,3.2078]
[1758164636965,0.7004,4616.8,4616.7,3.6939]
[1758164637361,0.7004,4616.8,4616.7,3.8946]
[1758164640265,1.21651831,4616.8,4616.7,3.8946]
[1758164640566,0.7004,4616.8,4616.7,3.8946]
[1758164641164,1.21655422,4616.8,4616.7,3.8946]
[1758164641361,1.21655422,4616.8,4616.7,3.9079]
[1758164641967,0.72045422,4616.8,4616.7,3.9079]
[1758164642176,1.01645422,4616.8,4616.7,3.9079]
[1758164642676,1.20905422,4616.8,4616.7,3.9079]
[1758164643774,0.51615422,4616.8,4616.7,4.83701193]
[1758164644163,0.51615422,4616.8,4616.7,5.05361193]
[1758164644671,0.411,4617.5,4617.4,0.305]
[1758164644871,0.5055,4617.6,4617.5,0.305]
[1758164645174,0.296,4617.6,4617.5,0.305]
[1758164645380,0.5055,4617.6,4617.5,1.23411193]
[1758164645572,0.6981,4617.6,4617.5,0.305]
[1758164645770,0.8107,4617.5,4617.4,3.2078]
[1758164646074,0.8107,4617.5,4617.4,3.3608]
[1758164646471,0.1145,4617.0,4616.8,3.2078]
[1758164646669,0.6962,4616.9,4616.8,3.2078]
[1758164646865,0.6962,4616.9,4616.8,3.5138]
[1758164647073,0.1145,4617.5,4616.8,3.609]
[1758164647270,0.2911,4617.3,4617.0,1.02431193]
[1758164647473,0.5004,4617.3,4617.2,0.306]
[1758164647676,0.49479231,4617.3,4617.2,0.4012]
[1758164648373,0.2911,4617.9,4617.3,0.0952]
[1758164648675,0.6962,4617.4,4617.3,3.2078]
[1758164648876,0.90007994,4617.4,4617.3,3.2078]
[1758164649370,0.6962,4616.9,4616.8,3.3608]
[1758164649573,0.90007994,4616.9,4616.8,3.5138]
[1758164649769,0.2911,4617.2,4616.8,3.609]
[1758164649970,0.2911,4617.1,4617.0,1.33031193]
[1758164650171,0.2911,4617.4,4617.0,1.23511193]
[1758164650372,0.5004,4617.4,4617.3,3.5138]
[1758164650580,0.90006013,4617.4,4617.3,3.5138]
[1758164650778,0.90005962,4617.4,4617.3,3.5138]
[1758164651472,0.1222,4618.0,4617.6,0.4012]
[1758164651679,0.49495419,4617.9,4617.8,3.609]
[1758164651873,0.2911,4617.9,4617.8,3.609]
[1758164652680,0.5004,4617.9,4617.8,3.5138]
[1758164653581,0.5004,4617.9,4617.8,3.609]
[1758164653877,0.2911,4617.9,4617.8,3.609]
[1758164654382,0.5004,4617.9,4617.8,3.5138]
[1758164654774,0.6962,4617.9,4617.8,3.3608]
[1758164655079,0.6962,4617.9,4617.8,3.2078]
[1758164655581,0.89987564,4617.9,4617.8,3.5138]
[1758164655981,0.49477564,4617.9,4617.8,4.44291193]
[1758164656183,0.49477564,4617.9,4617.8,4.53811193]
[1758164656680,1.01071283,4617.9,4617.8,4.53811193]
[1758164657187,0.80703719,4617.9,4617.8,4.53811193]
[1758164657578,0.51593719,4617.9,4617.8,4.53811193]
[1758164659085,1.01633719,4617.9,4617.8,3.5138]
[1758164659280,0.2911,4617.9,4617.8,3.609]
[1758164659479,0.022,4618.2,4617.8,3.5138]
[1758164659775,1.01602156,4618.1,4618.0,0.306]
[1758164660382,1.21182156,4618.1,4618.0,0.306]
[1758164660583,0.51562156,4618.1,4618.0,0.4012]
[1758164660783,0.51562156,4618.1,4618.0,1.33031193]
[1758164661979,0.022,4618.2,4618.0,1.33031193]
[1758164662179,0.022,4618.2,4618.1,0.6222]
[1758164662779,0.3131,4618.2,4618.1,0.6222]
[1758164662983,0.5224,4618.2,4618.1,0.527]
[1758164664088,0.7182,4618.2,4618.1,0.306]
[1758164664481,0.3131,4618.2,4618.1,1.33031193]
[1758164665377,0.022,4618.2,4618.1,1.33031193]
[1758164670190,0.3131,4618.2,4618.1,1.33031193]
[1758164670390,0.7182,4618.2,4617.9,0.1732]
[1758164670593,0.8107,4618.0,4617.9,0.1732]
[1758164670990,0.8107,4618.0,4617.9,0.3262]
[1758164671382,0.8107,4618.0,4617.9,0.4792]
[1758164671781,0.8107,4618.0,4617.9,0.3262]
[1758164671986,0.8107,4618.0,4617.9,0.4792]
[1758164672591,0.8107,4618.0,4617.9,0.3262]
[1758164672787,0.8107,4618.0,4617.9,0.4792]
[1758164672994,0.6149,4618.0,4617.9,0.5744]
[1758164673191,0.4056,4618.0,4617.9,0.5744]
[1758164673792,0.4056,4618.0,4617.9,1.33088308]
[1758164673988,0.2911,4618.0,4617.9,0.7954]
[1758164674194,0.3131,4618.2,4618.1,0.4012]
[1758164674397,0.3131,4618.2,4618.1,1.37868308]
[1758164674891,0.7182,4618.2,4618.1,0.153]
[1758164675200,0.8107,4618.0,4617.9,1.08268308]
[1758164675496,0.6149,4618.0,4617.9,1.23568308]
[1758164678694,0.8107,4618.0,4617.9,1.23568308]
[1758164679197,0.6149,4618.0,4617.9,1.23568308]
[1758164680297,0.8262,4618.0,4617.9,1.23568308]
[1758164682298,0.8262,4618.0,4617.9,1.08268308]
[1758164682991,0.8262,4618.0,4617.9,1.45638308]
[1758164685903,0.8262,4618.0,4617.9,0.1732]
[1758164686601,1.33640105,4618.0,4617.9,0.1732]
[1758164686796,2.09288413,4618.0,4617.9,0.1732]
[1758164687198,1.58268308,4618.0,4617.9,0.1732]
[1758164687403,0.8262,4618.0,4617.9,0.1732]
[1758164687805,0.8262,4618.0,4617.9,0.92968308]
[1758164688907,0.8262,4618.0,4617.9,0.1732]
[1758164689207,0.8262,4618.0,4617.9,0.92968308]
[1758164690009,0.8262,4618.0,4617.9,0.1732]
[1758164691110,0.6149,4618.0,4617.9,1.23508308]
[1758164691708,0.8262,4618.0,4617.9,1.23508308]
[1758164691909,0.6125,4618.0,4617.9,0.4786]
[1758164692103,0.8238,4618.0,4617.9,0.4786]
[1758164692799,0.8238,4618.0,4617.9,0.1732]
[1758164693708,0.2915,4617.9,4617.8,3.96428308]
[1758164693914,0.7093,4617.9,4617.8,3.2078]
[1758164694406,0.7093,4617.9,4617.8,3.3605]
[1758164694710,0.7093,4617.9,4617.8,3.5132]
[1758164694902,0.2915,4617.9,4617.8,3.5132]
[1758164695813,0.498,4617.9,4617.8,3.5132]
[1758164696008,0.7093,4617.9,4617.8,3.5132]
[1758164696210,0.7093,4617.9,4617.8,3.7332]
[1758164697313,0.2915,4617.9,4617.8,4.58518308]
[1758164697509,0.022,4618.2,4617.8,4.58518308]
[1758164697717,0.2915,4618.1,4618.0,0.4009]
[1758164697907,0.2915,4618.1,4618.0,0.6209]
[1758164698935,0.2915,4618.1,4618.0,1.37738308]
[1758164699217,0.4832,4618.1,4618.0,1.28188308]
[1758164700816,0.4832,4618.1,4618.0,1.06188308]
[1758164701017,0.4832,4618.1,4618.0,1.28188308]
[1758164701418,0.2915,4618.1,4618.0,1.37668308]
[1758164701618,0.3085,4618.6,4618.2,0.0948]
[1758164701813,0.3085,4618.6,4618.5,3.606]
[1758164702013,0.5002,4618.6,4618.5,3.7312]
[1758164702519,0.5002,4618.6,4618.5,4.26768308]
[1758164702826,0.5002,4618.6,4618.5,4.58248308]
[1758164703028,0.5002,4618.6,4618.5,4.48768308]
[1758164704018,0.3085,4618.6,4618.5,4.58248308]
[1758164704325,0.3085,4618.9,4618.5,4.18428308]
[1758164704528,0.3085,4618.9,4618.8,1.15468308]
[1758164704719,0.3085,4618.9,4618.8,2.13116616]
[1758164705117,0.5002,4619.3,4619.2,0.3034]
[1758164705423,0.7015,4619.3,4619.2,4.26768308]
[1758164705824,0.5002,4619.3,4619.2,4.36338308]
[1758164706023,0.5002,4619.3,4619.2,4.26768308]
[1758164706420,0.3085,4619.3,4619.2,4.58338308]
[1758164706616,0.45,4619.4,4619.2,4.58338308]
[1758164706823,0.45,4619.4,4619.3,0.4019]
[1758164707021,0.7381,4619.4,4619.3,0.4019]
[1758164707722,0.8489,4619.4,4619.2,3.2078]
[1758164707922,0.687,4619.3,4619.2,3.2078]
[1758164709324,4.90349,4619.3,4619.2,2.8905]
[1758164709826,0.45,4619.4,4619.3,0.7059]
[1758164710031,0.8061,4620.5,4620.4,0.4072]
[1758164710226,1.76319091,4620.5,4620.4,1.16368308]
[1758164710929,1.54673091,4620.5,4620.1,0.75648308]
[1758164711124,0.3989,4620.2,4620.1,0.2067]
[1758164711430,0.687,4620.2,4620.1,0.2067]
[1758164711633,0.2881,4620.4,4620.1,0.75648308]
[1758164711825,0.2881,4620.4,4620.3,1.46238308]
[1758164712022,0.4915,4620.4,4620.3,1.46238308]
[1758164712219,3.2078,4620.9,4620.3,1.46238308]
[1758164712426,0.687,4620.8,4620.7,3.9137]
[1758164713631,0.687,4620.8,4620.7,4.67018308]
[1758164713826,0.687,4620.8,4620.7,3.9137]
[1758164714024,0.687,4620.8,4620.7,4.67018308]
[1758164714426,0.687,4620.8,4620.7,3.615]
[1758164715135,0.687,4620.8,4620.7,4.67018308]
[1758164716134,0.687,4620.8,4620.7,4.37148308]
[1758164716534,0.687,4620.8,4620.7,4.67018308]
[1758164716726,0.4915,4620.8,4620.7,4.67018308]
[1758164716934,0.4915,4620.8,4620.7,3.9137]
[1758164717125,0.687,4620.8,4620.7,4.67018308]